[Event "European Womens-ch 2025"]
[Site "Rhodes"]
[Date "2025.04.02"]
[Round "3.16"]
[White "Vega Gutierrez, Sabrina"]
[Black "Calzetta Ruiz, Monica"]
[Result "0-1"]
[Annotator "RC"]
[ECO "B76"]
[WhiteElo "2380"]
[BlackElo "2230"]
[PlyCount "138"]
[EventDate "2025.03.29"]
[EventType "swiss"]
[EventCountry "GRE"]
[SourceTitle "playchess.com"]
[Source "ChessBase"]
[SourceQuality "1"]
[TimeControl "40/5400+30:1800+30"]

1. e4 {[%emt 0:00:04]} c5 {[%emt 0:00:14]} 2. Nf3 {[%emt 0:00:11]} d6 {[%emt 0:00:08]} 3. d4 {[%emt 0:00:15]} cxd4 {[%emt 0:00:05]} 4. Nxd4 {[%emt 0:00:12]} Nf6 {[%emt 0:00:07]} 5. Nc3 {[%emt 0:00:06]} g6 {[%emt 0:00:14]} 6. Be3 {[%emt 0:00:34]} Nc6 {[%emt 0:02:10]} 7. f3 {[%emt 0:00:15]} Bg7 {[%emt 0:00:08]} 8. Qd2 {[%emt 0:00:28]} O-O {[%emt 0:00:12]} 9. g4 {[%emt 0:00:23]} Be6 {[%emt 0:02:22]} 10. Nxe6 {[%emt 0:00:19]} fxe6 {[%emt 0:00:04]} 11. O-O-O {[%emt 0:00:27]} Qc8 {[%emt 0:06:29]} 12. Be2 {[%emt 0:01:55]} Ne5 {[%emt 0:02:41]} 13. Bd4 {[%emt 0:00:50]} Nc6 {[%emt 0:03:49]} 14. Bg1 {[%emt 0:00:34]} a6 {[%emt 0:06:38]} 15. h4 {[%emt 0:09:46]} b5 {[%emt 0:00:45]} 16. h5 {[%emt 0:02:05]} Ne5 {[%emt 0:30:58]} 17. hxg6 {[%emt 0:05:20]} hxg6 {[%emt 0:00:53]} 18. Qg5 {[%emt 0:03:05]} b4 {[%emt 0:01:38]} 19. Na4 {[%emt 0:15:19]} Qc6 {[%emt 0:00:43]} 20. b3 {[%emt 0:01:12]} Rac8 {[%emt 0:00:47]} 21. Rd2 {[%emt 0:07:17]} Nxe4 {[%emt 0:34:48]} 22. fxe4 {[%emt 0:00:40]} Qxe4 {[%emt 0:00:02]} 23. Qh4 {[%emt 0:01:50]} g5 {[%emt 0:02:14]} 24. Qh3 {[%emt 0:02:07]} Rf6 {[%emt 0:03:11]} 25. Rh2 {[%emt 0:03:30]} Nf3 {[%emt 0:01:05]} 26. Qg3 {[%emt 0:25:27]} Nxd2 {[%emt 0:00:13]} 27. Bd3 {[%emt 0:00:04]} Nf1 {[%emt 0:00:37]} 28. Bxe4 {[%emt 0:01:04]} Nxg3 {[%emt 0:00:02]} 29. Bd3 {[%emt 0:01:24]} Rf4 {[%emt 0:00:49]} 30. Rg2 {[%emt 0:01:55]} Nf1 {[%emt 0:00:27]} 31. Kd1 {[%emt 0:02:40]} Rcf8 {[%emt 0:00:04]} 32. Ke1 {[%emt 0:03:28]} a5 {[%emt 0:00:06]} 33. Bb6 {[%emt 0:10:11]} d5 {[%emt 0:00:09]} 34. Ke2 {[%emt 0:00:28]} Bd4 {[%emt 0:00:43]} 35. Bxd4 {[%emt 0:00:48]} Rxd4 {[%emt 0:00:02]} 36. Nc5 {[%emt 0:00:12]} Rf6 {[%emt 0:01:10]} 37. Nd7 {[%emt 0:01:07]} Rff4 {[%emt 0:00:06]} 38. Ne5 {[%emt 0:00:15]} Rde4+ {[%emt 0:00:11]} 39. Bxe4 {[%emt 0:01:27]} Rxe4+ {[%emt 0:00:01]} 40. Kxf1 {[%emt 0:00:00]} Rxe5 {[%emt 0:00:00]} 41. Kf2 {[%emt 0:00:23]} Re4 {[%emt 0:00:13]} 42. Kf3 {[%emt 0:00:05]} Rf4+ {[%emt 0:01:16]} 43. Kg3 {[%emt 0:00:06]} Kg7 {[%emt 0:04:01]} 44. Rh2 {[%emt 0:00:18]} Re4 {[%emt 0:13:08]} 45. Kf3 {[%emt 0:00:07]} Re1 {[%emt 0:01:21]} 46. Rh5 {[%emt 0:08:07]} Re5 {[%emt 0:00:35]} 47. Kf2 {[%emt 0:02:17]} d4 {[%emt 0:00:10]} 48. Kf1 {[%emt 0:00:09]} Kg6 {[%emt 0:00:15]} 49. Rh8 {[%emt 0:00:22]} Re4 {[%emt 0:00:10]} 50. Rg8+ {[%emt 0:00:48]} Kf6 {[%emt 0:00:12]} 51. Ra8 {[%emt 0:00:39]} Re5 {[%emt 0:03:53]} 52. Rf8+ {[%emt 0:03:07]} Kg7 {[%emt 0:00:02]} 53. Rc8 {[%emt 0:01:03]} Rd5 {[%emt 0:00:11]} 54. Ke2 {[%emt 0:00:12]} Kf6 {[%emt 0:01:56]} 55. Rg8 {[%emt 0:04:23]} Rc5 {[%emt 0:00:42]} 56. Kd3 {[%emt 0:00:53]} Rc3+ {[%emt 0:02:08]} 57. Kd2 {[%emt 0:06:40]} Rg3 {[%emt 0:00:05]} 58. Ra8 {[%emt 0:01:40]} Rxg4 {[%emt 0:00:02]} 59. Rxa5 {[%emt 0:00:06]} Rg2+ {[%emt 0:00:15]} 60. Kd3 {[%emt 0:00:18]} g4 {[%emt 0:00:27]} 61. a3 {[%emt 0:04:28]} bxa3 {[%emt 0:00:02]} 62. Rxa3 {[%emt 0:00:34]} e5 {[%emt 0:01:04]} 63. Ra1 {[%emt 0:00:47]} Rg3+ {[%emt 0:00:18]} 64. Ke4 {[%emt 0:04:21]} Re3+ {[%emt 0:00:27]} 65. Kd5 {[%emt 0:00:02]} e6+ {[%emt 0:00:33]} 66. Kd6 {[%emt 0:00:05]} d3 {[%emt 0:01:14]} 67. c4 {[%emt 0:00:40]} d2 {[%emt 0:00:07]} 68. Rd1 {[%emt 0:00:03]} Rd3+ {[%emt 0:00:19]} 69. Kc5 {[%emt 0:02:07]} e4 {[%emt 0:00:06]} 0-1

[Event "European Womens-ch 2025"]
[Site "Rhodes"]
[Date "2025.04.02"]
[Round "3.17"]
[White "Lach, Aleksandra"]
[Black "Maltsevskaya, Aleksandra"]
[Result "0-1"]
[Annotator "RC"]
[ECO "A50"]
[WhiteElo "2208"]
[BlackElo "2376"]
[PlyCount "80"]
[EventDate "2025.03.29"]
[EventType "swiss"]
[EventCountry "GRE"]
[SourceTitle "playchess.com"]
[Source "ChessBase"]
[SourceQuality "1"]
[TimeControl "40/5400+30:1800+30"]

1. d4 {[%emt 0:01:32]} Nf6 {[%emt 0:00:23]} 2. Nf3 {[%emt 0:01:08]} b6 {[%emt 0:00:35]} 3. g3 {[%emt 0:01:27]} Bb7 {[%emt 0:00:27]} 4. Bg2 {[%emt 0:00:05]} g6 {[%emt 0:02:33]} 5. O-O {[%emt 0:00:40]} Bg7 {[%emt 0:00:06]} 6. c4 {[%emt 0:00:43]} O-O {[%emt 0:00:11]} 7. d5 {[%emt 0:00:43]} Ne4 {[%emt 0:16:15]} 8. Qc2 {[%emt 0:02:31]} f5 {[%emt 0:00:07]} 9. Ng5 {[%emt 0:00:48]} Nd6 {[%emt 0:06:48]} 10. Bf4 {[%emt 0:05:25]} h6 {[%emt 0:12:09]} 11. Nf3 {[%emt 0:04:13]} Nf7 {[%emt 0:11:29]} 12. Nc3 {[%emt 0:14:40]} e5 {[%emt 0:01:53]} 13. dxe6 {[%emt 0:01:26]} dxe6 {[%emt 0:00:06]} 14. Rfd1 {[%emt 0:15:48]} Qc8 {[%emt 0:00:38]} 15. e4 {[%emt 0:06:32]} g5 {[%emt 0:11:10]} 16. Be3 {[%emt 0:03:53]} Nc6 {[%emt 0:09:34]} 17. exf5 {[%emt 0:06:30]} Nfe5 {[%emt 0:04:34]} 18. Nxe5 {[%emt 0:10:59]} Nxe5 {[%emt 0:00:05]} 19. f6 {[%emt 0:00:14]} Bxf6 {[%emt 0:03:08]} 20. Bd4 {[%emt 0:02:50]} Bxg2 {[%emt 0:00:26]} 21. Kxg2 {[%emt 0:10:40]} Qe8 {[%emt 0:00:13]} 22. Qe4 {[%emt 0:01:51]} Nd7 {[%emt 0:01:46]} 23. Nb5 {[%emt 0:02:21]} Bxd4 {[%emt 0:01:22]} 24. Nxd4 {[%emt 0:02:12]} Nc5 {[%emt 0:00:07]} 25. Qe3 {[%emt 0:00:39]} e5 {[%emt 0:05:06]} 26. Nf3 {[%emt 0:00:13]} e4 {[%emt 0:01:35]} 27. Ne1 {[%emt 0:01:39]} a5 {[%emt 0:03:06]} 28. Rd5 {[%emt 0:00:45]} Qh5 {[%emt 0:02:13]} 29. h4 {[%emt 0:01:46]} Rf7 {[%emt 0:00:19]} 30. hxg5 {[%emt 0:00:30]} Raf8 {[%emt 0:00:13]} 31. Rd2 {[%emt 0:00:37]} hxg5 {[%emt 0:00:15]} 32. g4 {[%emt 0:00:17]} Qh6 {[%emt 0:01:47]} 33. Qg3 {[%emt 0:00:45]} Ne6 {[%emt 0:01:16]} 34. Kf1 {[%emt 0:00:30]} Nf4 {[%emt 0:01:57]} 35. f3 {[%emt 0:00:00]} Qh1+ {[%emt 0:00:47]} 36. Kf2 {[%emt 0:00:41]} exf3 {[%emt 0:01:02]} 37. Nc2 {[%emt 0:00:38]} Qh7 {[%emt 0:01:55]} 38. Rad1 {[%emt 0:00:39]} Re7 {[%emt 0:00:38]} 39. Nd4 {[%emt 0:00:24]} Ne2 {[%emt 0:00:25]} 40. Nf5 {[%emt 0:00:00]} Nxg3 {[%emt 0:00:00]} 0-1

[Event "European Womens-ch 2025"]
[Site "Rhodes"]
[Date "2025.04.02"]
[Round "3.18"]
[White "Dwilewicz, Katarzyna"]
[Black "Milliet, Sophie"]
[Result "1/2-1/2"]
[Annotator "RC"]
[ECO "B28"]
[WhiteElo "2203"]
[BlackElo "2371"]
[PlyCount "68"]
[EventDate "2025.03.29"]
[EventType "swiss"]
[EventCountry "GRE"]
[SourceTitle "playchess.com"]
[Source "ChessBase"]
[SourceQuality "1"]
[TimeControl "40/5400+30:1800+30"]

1. e4 {[%emt 0:00:04]} c5 {[%emt 0:00:06]} 2. Nf3 {[%emt 0:00:19]} a6 {[%emt 0:00:08]} 3. g3 {[%emt 0:04:33]} Nc6 {[%emt 0:00:20]} 4. Bg2 {[%emt 0:00:14]} e5 {[%emt 0:00:19]} 5. O-O {[%emt 0:00:31]} g6 {[%emt 0:00:56]} 6. c3 {[%emt 0:01:04]} Bg7 {[%emt 0:00:05]} 7. Na3 {[%emt 0:00:39]} d6 {[%emt 0:06:49]} 8. Nc2 {[%emt 0:03:47]} Nge7 {[%emt 0:09:00]} 9. d4 {[%emt 0:05:13]} cxd4 {[%emt 0:00:53]} 10. cxd4 {[%emt 0:00:06]} Bg4 {[%emt 0:00:38]} 11. d5 {[%emt 0:05:43]} Na7 {[%emt 0:00:12]} 12. Ne3 {[%emt 0:03:40]} Bd7 {[%emt 0:01:18]} 13. Qb3 {[%emt 0:07:55]} O-O {[%emt 0:15:10]} 14. Bd2 {[%emt 0:04:07]} b5 {[%emt 0:16:20]} 15. Qa3 {[%emt 0:06:12]} Qb8 {[%emt 0:02:39]} 16. Rac1 {[%emt 0:03:56]} Nac8 {[%emt 0:01:01]} 17. Ba5 {[%emt 0:02:25]} Ra7 {[%emt 0:00:08]} 18. Rfe1 {[%emt 0:09:45]} Bh6 {[%emt 0:08:25]} 19. Rc3 {[%emt 0:07:24]} f5 {[%emt 0:02:44]} 20. exf5 {[%emt 0:02:30]} Nxf5 {[%emt 0:01:25]} 21. Nxf5 {[%emt 0:03:46]} gxf5 {[%emt 0:04:00]} 22. Qb3 {[%emt 0:02:46]} Nb6 {[%emt 0:03:45]} 23. Bxb6 {[%emt 0:08:38]} Qxb6 {[%emt 0:00:03]} 24. Qd1 {[%emt 0:03:37]} f4 {[%emt 0:07:20]} 25. Qe2 {[%emt 0:05:09]} b4 {[%emt 0:02:04]} 26. Rc2 {[%emt 0:00:43]} fxg3 {[%emt 0:00:28]} 27. hxg3 {[%emt 0:00:11]} Qb5 {[%emt 0:09:31]} 28. Qxb5 {[%emt 0:02:36]} axb5 {[%emt 0:00:05]} 29. Nh4 {[%emt 0:05:53]} Rc8 {[%emt 0:00:24]} 30. Rxc8+ {[%emt 0:00:25]} Bxc8 {[%emt 0:00:01]} 31. Re4 {[%emt 0:00:38]} Rxa2 {[%emt 0:00:52]} 32. Rxb4 {[%emt 0:00:06]} Bd7 {[%emt 0:00:14]} 33. Bf1 {[%emt 0:00:47]} Ra8 {[%emt 0:05:37]} 34. Bd3 {[%emt 0:01:19]} Rf8 {[%emt 0:03:51]} 1/2-1/2

[Event "European Womens-ch 2025"]
[Site "Rhodes"]
[Date "2025.04.02"]
[Round "3.19"]
[White "Korenova, Martina"]
[Black "Kiolbasa, Oliwia"]
[Result "1/2-1/2"]
[Annotator "RC"]
[ECO "C68"]
[WhiteElo "2045"]
[BlackElo "2360"]
[PlyCount "127"]
[EventDate "2025.03.29"]
[EventType "swiss"]
[EventCountry "GRE"]
[SourceTitle "playchess.com"]
[Source "ChessBase"]
[SourceQuality "1"]
[TimeControl "40/5400+30:1800+30"]

1. e4 {[%emt 0:00:09]} e5 {[%emt 0:01:23]} 2. Nf3 {[%emt 0:00:07]} Nc6 {[%emt 0:00:06]} 3. Bb5 {[%emt 0:00:09]} a6 {[%emt 0:00:06]} 4. Bxc6 {[%emt 0:00:06]} dxc6 {[%emt 0:00:08]} 5. O-O {[%emt 0:00:12]} Ne7 {[%emt 0:08:32]} 6. d4 {[%emt 0:01:46]} exd4 {[%emt 0:07:55]} 7. Qxd4 {[%emt 0:01:11]} Qxd4 {[%emt 0:01:35]} 8. Nxd4 {[%emt 0:00:05]} c5 {[%emt 0:02:16]} 9. Ne2 {[%emt 0:00:29]} Bd7 {[%emt 0:02:00]} 10. Be3 {[%emt 0:01:59]} Ng6 {[%emt 0:02:28]} 11. Nd2 {[%emt 0:06:44]} O-O-O {[%emt 0:00:55]} 12. Rad1 {[%emt 0:03:36]} Re8 {[%emt 0:04:07]} 13. Nf4 {[%emt 0:04:55]} Ne5 {[%emt 0:03:27]} 14. f3 {[%emt 0:03:07]} Bc6 {[%emt 0:03:40]} 15. Rfe1 {[%emt 0:04:57]} b6 {[%emt 0:03:26]} 16. b3 {[%emt 0:03:14]} h5 {[%emt 0:03:14]} 17. Nf1 {[%emt 0:06:21]} h4 {[%emt 0:04:30]} 18. c4 {[%emt 0:02:44]} h3 {[%emt 0:07:29]} 19. Ng3 {[%emt 0:06:59]} Be7 {[%emt 0:05:57]} 20. Nd5 {[%emt 0:10:15]} Bd8 {[%emt 0:01:07]} 21. Bf4 {[%emt 0:06:04]} Ng6 {[%emt 0:02:28]} 22. Bc1 {[%emt 0:05:38]} Bxd5 {[%emt 0:08:02]} 23. Rxd5 {[%emt 0:01:20]} Nh4 {[%emt 0:00:16]} 24. Red1 {[%emt 0:05:12]} Bf6 {[%emt 0:03:23]} 25. Nf5 {[%emt 0:01:47]} Nxg2 {[%emt 0:01:11]} 26. R5d3 {[%emt 0:07:27]} g6 {[%emt 0:01:29]} 27. Ng3 {[%emt 0:00:08]} Rd8 {[%emt 0:06:18]} 28. Rxd8+ {[%emt 0:00:20]} Rxd8 {[%emt 0:00:10]} 29. Rxd8+ {[%emt 0:00:04]} Kxd8 {[%emt 0:00:06]} 30. Kf2 {[%emt 0:04:26]} Bd4+ {[%emt 0:02:08]} 31. Ke2 {[%emt 0:00:14]} Be5 {[%emt 0:01:25]} 32. Nf1 {[%emt 0:05:40]} Kd7 {[%emt 0:00:17]} 33. Bd2 {[%emt 0:02:42]} c6 {[%emt 0:01:14]} 34. Kf2 {[%emt 0:02:21]} Kd6 {[%emt 0:02:24]} 35. Ng3 {[%emt 0:01:15]} Bd4+ {[%emt 0:01:06]} 36. Ke2 {[%emt 0:01:44]} Ke5 {[%emt 0:00:47]} 37. Bc1 {[%emt 0:02:53]} Bg1 {[%emt 0:02:19]} 38. Bb2+ {[%emt 0:00:29]} Bd4 {[%emt 0:00:38]} 39. Bc1 {[%emt 0:00:02]} Nf4+ {[%emt 0:00:13]} 40. Kd2 {[%emt 0:00:00]} Bg1 {[%emt 0:00:00]} 41. Bb2+ {[%emt 0:01:43]} Kd6 {[%emt 0:08:44]} 42. Nf1 {[%emt 0:07:03]} Ne6 {[%emt 0:01:26]} 43. e5+ {[%emt 0:00:13]} Ke7 {[%emt 0:09:12]} 44. Kd3 {[%emt 0:01:30]} Nd4 {[%emt 0:05:05]} 45. Ke4 {[%emt 0:00:33]} Ke6 {[%emt 0:00:21]} 46. Bc1 {[%emt 0:06:23]} b5 {[%emt 0:03:04]} 47. Bd2 {[%emt 0:05:24]} Nf5 {[%emt 0:00:12]} 48. f4 {[%emt 0:01:04]} f6 {[%emt 0:02:33]} 49. exf6 {[%emt 0:02:18]} Nd6+ {[%emt 0:00:14]} 50. Kd3 {[%emt 0:00:51]} Kxf6 {[%emt 0:00:54]} 51. Be3 {[%emt 0:02:33]} Bxe3 {[%emt 0:01:02]} 52. Nxe3 {[%emt 0:00:06]} g5 {[%emt 0:00:39]} 53. fxg5+ {[%emt 0:01:00]} Kxg5 {[%emt 0:00:06]} 54. Nd1 {[%emt 0:00:21]} a5 {[%emt 0:06:02]} 55. Nf2 {[%emt 0:00:30]} Kh4 {[%emt 0:00:04]} 56. Nd1 {[%emt 0:03:23]} Nf5 {[%emt 0:02:54]} 57. Ke4 {[%emt 0:02:29]} Nd4 {[%emt 0:01:04]} 58. Ne3 {[%emt 0:00:28]} Ne2 {[%emt 0:01:16]} 59. cxb5 {[%emt 0:01:42]} cxb5 {[%emt 0:01:09]} 60. Kd5 {[%emt 0:00:18]} Nc3+ {[%emt 0:01:29]} 61. Kxc5 {[%emt 0:00:08]} Nxa2 {[%emt 0:00:35]} 62. Kxb5 {[%emt 0:00:08]} Nc1 {[%emt 0:00:07]} 63. Ka4 {[%emt 0:01:34]} Kg5 {[%emt 0:00:15]} 64. Nd1 {[%emt 0:00:29]} 1/2-1/2

[Event "European Womens-ch 2025"]
[Site "Rhodes"]
[Date "2025.04.02"]
[Round "3.20"]
[White "Mammadova, Gulnar"]
[Black "Gevorgyan, Maria"]
[Result "1/2-1/2"]
[Annotator "RC"]
[ECO "C77"]
[WhiteElo "2342"]
[BlackElo "2234"]
[PlyCount "27"]
[EventDate "2025.03.29"]
[EventType "swiss"]
[EventCountry "GRE"]
[SourceTitle "playchess.com"]
[Source "ChessBase"]
[SourceQuality "1"]
[TimeControl "40/5400+30:1800+30"]

1. e4 {[%emt 0:00:05]} e5 {[%emt 0:00:08]} 2. Nf3 {[%emt 0:00:22]} Nc6 {[%emt 0:00:08]} 3. Bb5 {[%emt 0:01:31]} a6 {[%emt 0:00:06]} 4. Ba4 {[%emt 0:00:03]} Nf6 {[%emt 0:00:06]} 5. Nc3 {[%emt 0:02:00]} b5 {[%emt 0:00:28]} 6. Bb3 {[%emt 0:00:04]} Bc5 {[%emt 0:00:05]} 7. Nd5 {[%emt 0:02:19]} d6 {[%emt 0:07:11]} 8. c3 {[%emt 0:05:09]} Nxe4 {[%emt 0:12:47]} 9. d4 {[%emt 0:03:10]} Ba7 {[%emt 0:04:06]} 10. Qe2 {[%emt 0:05:00]} f5 {[%emt 0:03:30]} 11. Nd2 {[%emt 0:17:19]} Nf6 {[%emt 0:08:31]} 12. Nf3 {[%emt 0:08:33]} Ne4 {[%emt 0:11:42]} 13. Nd2 {[%emt 0:12:49]} Nf6 {[%emt 0:03:08]} 14. Nf3 {[%emt 0:03:49]} 1/2-1/2

[Event "European Womens-ch 2025"]
[Site "Rhodes"]
[Date "2025.04.02"]
[Round "3.21"]
[White "Savina, Anastasia"]
[Black "Gaboyan, Susanna"]
[Result "1-0"]
[Annotator "RC"]
[ECO "D61"]
[WhiteElo "2331"]
[BlackElo "2200"]
[PlyCount "121"]
[EventDate "2025.03.29"]
[EventType "swiss"]
[EventCountry "GRE"]
[SourceTitle "playchess.com"]
[Source "ChessBase"]
[SourceQuality "1"]
[TimeControl "40/5400+30:1800+30"]

1. d4 {[%emt 0:03:14]} Nf6 {[%emt 0:00:36]} 2. c4 {[%emt 0:00:16]} e6 {[%emt 0:00:07]} 3. Nc3 {[%emt 0:00:25]} d5 {[%emt 0:00:08]} 4. Bg5 {[%emt 0:00:23]} Be7 {[%emt 0:00:09]} 5. e3 {[%emt 0:00:05]} O-O {[%emt 0:00:20]} 6. Nf3 {[%emt 0:00:49]} Nbd7 {[%emt 0:01:30]} 7. Qc2 {[%emt 0:01:46]} c6 {[%emt 0:03:25]} 8. Bd3 {[%emt 0:07:15]} h6 {[%emt 0:13:24]} 9. Bh4 {[%emt 0:04:44]} dxc4 {[%emt 0:08:50]} 10. Bxc4 {[%emt 0:00:06]} b5 {[%emt 0:03:34]} 11. Be2 {[%emt 0:17:57]} a6 {[%emt 0:02:41]} 12. Rd1 {[%emt 0:08:06]} Qa5 {[%emt 0:30:12]} 13. O-O {[%emt 0:18:56]} b4 {[%emt 0:06:47]} 14. Na4 {[%emt 0:05:12]} Bb7 {[%emt 0:07:45]} 15. Nd2 {[%emt 0:04:07]} Nd5 {[%emt 0:06:41]} 16. Nc4 {[%emt 0:03:24]} Qd8 {[%emt 0:00:07]} 17. Bxe7 {[%emt 0:00:14]} Nxe7 {[%emt 0:03:46]} 18. Nc5 {[%emt 0:05:35]} Nxc5 {[%emt 0:01:52]} 19. dxc5 {[%emt 0:00:03]} Qc7 {[%emt 0:00:14]} 20. g3 {[%emt 0:10:33]} a5 {[%emt 0:06:00]} 21. Nb6 {[%emt 0:05:26]} Rad8 {[%emt 0:00:06]} 22. e4 {[%emt 0:01:45]} Nc8 {[%emt 0:01:27]} 23. Na4 {[%emt 0:00:12]} Rxd1 {[%emt 0:00:44]} 24. Rxd1 {[%emt 0:00:04]} Rd8 {[%emt 0:00:47]} 25. Rd2 {[%emt 0:00:48]} Kf8 {[%emt 0:00:38]} 26. Qd1 {[%emt 0:00:20]} Ke7 {[%emt 0:00:34]} 27. Rxd8 {[%emt 0:01:38]} Qxd8 {[%emt 0:00:06]} 28. Qxd8+ {[%emt 0:00:12]} Kxd8 {[%emt 0:00:06]} 29. f4 {[%emt 0:00:10]} f6 {[%emt 0:01:51]} 30. Kf2 {[%emt 0:00:30]} e5 {[%emt 0:00:23]} 31. Ke3 {[%emt 0:00:26]} Ne7 {[%emt 0:00:37]} 32. Nb6 {[%emt 0:01:13]} Nc8 {[%emt 0:00:02]} 33. Nc4 {[%emt 0:00:34]} exf4+ {[%emt 0:00:41]} 34. gxf4 {[%emt 0:00:02]} a4 {[%emt 0:00:21]} 35. Na5 {[%emt 0:00:53]} Kc7 {[%emt 0:00:55]} 36. Bd1 {[%emt 0:00:17]} a3 {[%emt 0:00:31]} 37. bxa3 {[%emt 0:00:02]} bxa3 {[%emt 0:00:05]} 38. Nc4 {[%emt 0:00:21]} f5 {[%emt 0:00:56]} 39. e5 {[%emt 0:01:20]} Ne7 {[%emt 0:00:21]} 40. Bf3 {[%emt 0:00:00]} g5 {[%emt 0:00:00]} 41. Nxa3 {[%emt 0:17:46]} Bc8 {[%emt 0:11:00]} 42. Nc2 {[%emt 0:06:20]} Ng6 {[%emt 0:04:51]} 43. fxg5 {[%emt 0:04:38]} hxg5 {[%emt 0:00:06]} 44. Kd4 {[%emt 0:00:11]} g4 {[%emt 0:01:43]} 45. Be2 {[%emt 0:00:18]} f4 {[%emt 0:00:41]} 46. Ke4 {[%emt 0:01:05]} g3 {[%emt 0:05:40]} 47. hxg3 {[%emt 0:00:31]} fxg3 {[%emt 0:00:03]} 48. Ne3 {[%emt 0:03:39]} Be6 {[%emt 0:02:59]} 49. a4 {[%emt 0:00:37]} Nh4 {[%emt 0:00:41]} 50. Bf1 {[%emt 0:00:30]} g2 {[%emt 0:01:03]} 51. Bxg2 {[%emt 0:00:29]} Nxg2 {[%emt 0:00:08]} 52. Nxg2 {[%emt 0:00:17]} Bd5+ {[%emt 0:00:04]} 53. Kf5 {[%emt 0:00:35]} Bxg2 {[%emt 0:00:06]} 54. Ke6 {[%emt 0:00:10]} Bd5+ {[%emt 0:06:33]} 55. Ke7 {[%emt 0:00:02]} Bb3 {[%emt 0:02:30]} 56. e6 {[%emt 0:00:38]} Kc8 {[%emt 0:00:32]} 57. Kd6 {[%emt 0:01:16]} Kd8 {[%emt 0:00:16]} 58. a5 {[%emt 0:00:03]} Bc4 {[%emt 0:00:09]} 59. Kxc6 {[%emt 0:00:28]} Bxe6 {[%emt 0:01:01]} 60. a6 {[%emt 0:00:38]} Bg4 {[%emt 0:01:05]} 61. Kb6 {[%emt 0:00:45]} 1-0

[Event "European Womens-ch 2025"]
[Site "Rhodes"]
[Date "2025.04.02"]
[Round "3.22"]
[White "Toncheva, Nadya"]
[Black "Mamedjarova, Turkan"]
[Result "1-0"]
[Annotator "RC"]
[ECO "D36"]
[WhiteElo "2329"]
[BlackElo "2206"]
[PlyCount "157"]
[EventDate "2025.03.29"]
[EventType "swiss"]
[EventCountry "GRE"]
[SourceTitle "playchess.com"]
[Source "ChessBase"]
[SourceQuality "1"]
[TimeControl "40/5400+30:1800+30"]

1. d4 {[%emt 0:00:04]} d5 {[%emt 0:00:37]} 2. c4 {[%emt 0:00:07]} e6 {[%emt 0:00:04]} 3. Nc3 {[%emt 0:00:12]} Nf6 {[%emt 0:00:06]} 4. cxd5 {[%emt 0:00:05]} exd5 {[%emt 0:00:03]} 5. Bg5 {[%emt 0:00:09]} Be7 {[%emt 0:00:15]} 6. e3 {[%emt 0:00:06]} c6 {[%emt 0:00:08]} 7. Bd3 {[%emt 0:00:06]} Nbd7 {[%emt 0:00:18]} 8. Qc2 {[%emt 0:00:06]} O-O {[%emt 0:00:14]} 9. h3 {[%emt 0:00:05]} Re8 {[%emt 0:00:34]} 10. Nf3 {[%emt 0:00:07]} Nf8 {[%emt 0:01:38]} 11. O-O {[%emt 0:00:08]} Ne4 {[%emt 0:06:12]} 12. Bf4 {[%emt 0:00:09]} Nxc3 {[%emt 0:05:19]} 13. bxc3 {[%emt 0:00:09]} Bd6 {[%emt 0:00:06]} 14. Bxd6 {[%emt 0:07:35]} Qxd6 {[%emt 0:00:02]} 15. c4 {[%emt 0:04:14]} dxc4 {[%emt 0:08:51]} 16. Bxc4 {[%emt 0:00:09]} Be6 {[%emt 0:00:21]} 17. Bd3 {[%emt 0:06:30]} h6 {[%emt 0:02:00]} 18. e4 {[%emt 0:06:51]} Rac8 {[%emt 0:02:38]} 19. Rab1 {[%emt 0:05:33]} b6 {[%emt 0:09:20]} 20. Rfc1 {[%emt 0:10:04]} Bd7 {[%emt 0:16:00]} 21. Ba6 {[%emt 0:04:30]} Rcd8 {[%emt 0:01:26]} 22. e5 {[%emt 0:07:12]} Qe7 {[%emt 0:02:18]} 23. a4 {[%emt 0:12:55]} Be6 {[%emt 0:08:00]} 24. Bd3 {[%emt 0:09:35]} Bd5 {[%emt 0:02:09]} 25. Be4 {[%emt 0:00:15]} Ne6 {[%emt 0:00:23]} 26. a5 {[%emt 0:06:41]} bxa5 {[%emt 0:01:22]} 27. Bxd5 {[%emt 0:00:13]} cxd5 {[%emt 0:00:21]} 28. Qa4 {[%emt 0:03:09]} Nf4 {[%emt 0:01:44]} 29. Rc5 {[%emt 0:02:11]} Qe6 {[%emt 0:02:05]} 30. Qc2 {[%emt 0:03:12]} Rc8 {[%emt 0:02:59]} 31. Rbb5 {[%emt 0:01:53]} a4 {[%emt 0:06:10]} 32. Kh2 {[%emt 0:03:00]} a3 {[%emt 0:01:31]} 33. Ra5 {[%emt 0:00:45]} Rxc5 {[%emt 0:01:44]} 34. Qxc5 {[%emt 0:03:45]} Qg6 {[%emt 0:01:15]} 35. g3 {[%emt 0:00:38]} Nd3 {[%emt 0:03:44]} 36. Qxd5 {[%emt 0:01:14]} Nxf2 {[%emt 0:01:20]} 37. Nh4 {[%emt 0:03:21]} Qc2 {[%emt 0:01:56]} 38. Ng2 {[%emt 0:00:05]} Qc1 {[%emt 0:06:23]} 39. g4 {[%emt 0:00:25]} Qh1+ {[%emt 0:01:27]} 40. Kg3 {[%emt 0:00:00]} Qg1 {[%emt 0:00:00]} 41. h4 {[%emt 0:07:06]} Rc8 {[%emt 0:11:14]} 42. Rxa3 {[%emt 0:01:11]} Rc2 {[%emt 0:00:39]} 43. Qa8+ {[%emt 0:09:00]} Kh7 {[%emt 0:00:03]} 44. Qf3 {[%emt 0:00:21]} Nh1+ {[%emt 0:02:29]} 45. Kh3 {[%emt 0:00:05]} Nf2+ {[%emt 0:05:05]} 46. Kg3 {[%emt 0:00:06]} Nh1+ {[%emt 0:04:54]} 47. Kh3 {[%emt 0:00:04]} Rf2 {[%emt 0:02:01]} 48. Qe4+ {[%emt 0:01:53]} g6 {[%emt 0:00:44]} 49. h5 {[%emt 0:09:20]} Rf1 {[%emt 0:03:13]} 50. hxg6+ {[%emt 0:00:06]} Kg7 {[%emt 0:00:20]} 51. Qd5 {[%emt 0:00:58]} Rf4 {[%emt 0:02:00]} 52. Rf3 {[%emt 0:06:15]} Nf2+ {[%emt 0:08:06]} 53. Rxf2 {[%emt 0:00:05]} Rxf2 {[%emt 0:00:04]} 54. gxf7 {[%emt 0:00:05]} Qf1 {[%emt 0:01:52]} 55. e6 {[%emt 0:01:23]} Qd3+ {[%emt 0:00:32]} 56. Kh2 {[%emt 0:00:21]} Qe2 {[%emt 0:01:08]} 57. Qa8 {[%emt 0:01:32]} Rxg2+ {[%emt 0:00:15]} 58. Qxg2 {[%emt 0:00:04]} Qe3 {[%emt 0:00:19]} 59. f8=Q+ {[%emt 0:01:48]} Kxf8 {[%emt 0:00:01]} 60. Qa8+ {[%emt 0:00:04]} Kg7 {[%emt 0:00:37]} 61. Qxa7+ {[%emt 0:00:10]} Kh8 {[%emt 0:00:15]} 62. Qb8+ {[%emt 0:00:16]} Kh7 {[%emt 0:00:04]} 63. Qc7+ {[%emt 0:00:06]} Kg8 {[%emt 0:00:07]} 64. Qf7+ {[%emt 0:00:48]} Kh8 {[%emt 0:00:02]} 65. Qf6+ {[%emt 0:01:26]} Kh7 {[%emt 0:00:16]} 66. Qf5+ {[%emt 0:00:25]} Kg8 {[%emt 0:00:09]} 67. Qg6+ {[%emt 0:00:48]} Kh8 {[%emt 0:00:02]} 68. Qf6+ {[%emt 0:00:22]} Kh7 {[%emt 0:00:33]} 69. Qf5+ {[%emt 0:00:17]} Kg8 {[%emt 0:00:09]} 70. d5 {[%emt 0:00:17]} Qe2+ {[%emt 0:00:52]} 71. Kg3 {[%emt 0:00:12]} Qe1+ {[%emt 0:00:09]} 72. Qf2 {[%emt 0:01:04]} Qe5+ {[%emt 0:00:07]} 73. Kh3 {[%emt 0:00:15]} Qc3+ {[%emt 0:01:05]} 74. Kg2 {[%emt 0:00:18]} Qc4 {[%emt 0:00:42]} 75. Qf3 {[%emt 0:00:23]} Qc2+ {[%emt 0:00:26]} 76. Kh3 {[%emt 0:00:06]} Qc5 {[%emt 0:00:15]} 77. d6 {[%emt 0:00:23]} Qxd6 {[%emt 0:00:18]} 78. Qf7+ {[%emt 0:00:05]} Kh8 {[%emt 0:00:01]} 79. Qe8+ {[%emt 0:00:05]} 1-0